bitfinex/quotes_BTCUSD_20241111
["timestamp","ask_amount","ask_price","bid_price","bid_amount"]
[1731291978949,0.00580578,81468.0,81467.0,0.099883]
[1731291979164,0.00580578,81468.0,81467.0,0.001684]
[1731291979364,0.196382,81474.0,81467.0,0.001684]
[1731291979562,0.00578016,81468.0,81467.0,0.001684]
[1731291979825,0.098198,81468.0,81467.0,0.001684]
[1731291980009,0.10397816,81468.0,81467.0,0.001684]
[1731291980407,0.18437816,81468.0,81467.0,0.001684]
[1731291981153,0.08618016,81468.0,81467.0,0.001684]
[1731291981356,0.18437816,81468.0,81467.0,0.001684]
[1731291982084,0.45922037,81468.0,81467.0,0.001684]
[1731291982206,0.45922037,81468.0,81466.0,0.001684]
[1731291982207,0.198199,81467.0,81466.0,0.00075836]
[1731291982415,0.587046,81467.0,81466.0,0.00075836]
[1731291982590,0.50149763,81467.0,81466.0,0.00075836]
[1731291982801,0.50149763,81467.0,81445.0,0.18421521]
[1731291982802,0.098224,81446.0,81445.0,0.18421521]
[1731291983053,0.00604619,81446.0,81445.0,0.18421521]
[1731291983251,0.098214,81455.0,81448.0,0.098221]
[1731291983518,0.1,81456.0,81449.0,0.0049]
[1731291983519,0.098219,81450.0,81449.0,0.0049]
[1731291983718,0.00605448,81454.0,81449.0,0.0049]
[1731291983719,0.098218,81452.0,81449.0,0.0049]
[1731291983855,0.00605033,81450.0,81449.0,0.0049]
[1731291984064,0.098219,81450.0,81449.0,0.0049]
[1731291984281,0.00605033,81450.0,81449.0,0.0049]
[1731291984480,0.098217,81452.0,81449.0,0.0049]
[1731291984764,0.10427037,81451.0,81449.0,0.0049]
[1731291985088,0.00605137,81451.0,81449.0,0.0049]
[1731291985318,0.098218,81451.0,81449.0,0.0049]
[1731291985516,0.10427033,81450.0,81449.0,0.0049]
[1731291985720,0.00605033,81450.0,81449.0,0.0049]
[1731291986065,0.19472374,81457.0,81449.0,0.0049]
[1731291986454,0.00605656,81456.0,81449.0,0.0049]
[1731291986825,0.098217,81453.0,81447.0,0.103223]
[1731291986964,0.098216,81453.0,81449.0,0.0049]
[1731291987170,0.00605241,81452.0,81449.0,0.0049]
[1731291987385,0.24304289,81452.0,81445.0,0.005]
[1731291987697,0.098224,81446.0,81445.0,0.005]
[1731291988166,0.00592919,81446.0,81445.0,0.01]
[1731291988373,0.00592919,81446.0,81445.0,0.108225]
[1731291988578,0.098218,81451.0,81449.0,0.0049]
[1731291988801,0.196427,81455.0,81449.0,0.0049]
[1731291988959,0.00593334,81450.0,81449.0,0.0049]
[1731291989163,0.098216,81453.0,81449.0,0.0049]
[1731291989357,0.00593334,81450.0,81449.0,0.0049]
[1731291989556,0.098216,81453.0,81449.0,0.0049]
[1731291989794,0.196427,81455.0,81449.0,0.0049]
[1731291989795,0.00593334,81450.0,81449.0,0.0049]
[1731291990731,0.098217,81452.0,81449.0,0.0049]
[1731291990940,0.00593334,81450.0,81449.0,0.0049]
[1731291991090,0.13891476,81456.0,81450.0,0.201439]
[1731291991292,0.00593852,81455.0,81453.0,0.0049]
[1731291991497,0.196414,81461.0,81453.0,0.0049]
[1731291991768,0.00593749,81454.0,81453.0,0.0049]
[1731291991932,0.098214,81455.0,81453.0,0.0049]
[1731291992136,0.00593749,81454.0,81453.0,0.0049]
[1731291992540,0.098209,81459.0,81453.0,0.103116]
[1731291992720,0.00593749,81454.0,81453.0,0.103116]
[1731291992953,0.09821,81458.0,81453.0,0.103116]
[1731291993135,0.00593749,81454.0,81453.0,0.103116]
[1731291993363,0.14947309,81463.0,81453.0,0.0049]
[1731291993575,0.098222,81448.0,81447.0,0.0049]
[1731291993781,0.294663,81449.0,81447.0,0.0049]
[1731291993997,0.10415326,81448.0,81447.0,0.0049]
[1731291994414,0.098224,81446.0,81445.0,0.006684]
[1731291994623,0.10414164,81446.0,81445.0,0.006684]
[1731291995748,0.23208385,81446.0,81445.0,0.001684]
[1731291996003,0.33208385,81446.0,81445.0,0.001684]
[1731291996217,0.56080403,81446.0,81445.0,0.001684]
[1731291996673,0.5939885,81446.0,81445.0,0.001684]
[1731291997115,0.5939885,81446.0,81423.0,0.18421521]
[1731291997116,0.098251,81424.0,81423.0,0.18421521]
[1731291997349,0.23716576,81424.0,81423.0,0.18421521]
[1731291997552,0.2430018,81424.0,81423.0,0.18421521]
[1731291997796,0.00583604,81424.0,81423.0,0.103252]
[1731291998083,0.1,81435.0,81423.0,0.103252]
[1731291998084,0.28421521,81435.0,81423.0,0.005]
[1731291998225,0.322675,81436.0,81429.0,0.0049]
[1731291998226,0.098244,81430.0,81429.0,0.0049]
[1731291998440,0.19649,81429.0,81418.0,0.000843]
[1731291998666,0.098257,81419.0,81418.0,0.000843]
[1731291998883,0.10375043,81419.0,81418.0,0.000159]
[1731291999105,0.00549343,81419.0,81418.0,0.000159]
[1731291999337,0.10375043,81419.0,81418.0,0.000159]
[1731291999544,0.098257,81419.0,81418.0,0.000159]
[1731291999755,0.10374947,81419.0,81418.0,0.000159]
[1731292001988,0.00549247,81419.0,81418.0,0.098417]
[1731292002411,0.01044588,81422.0,81418.0,0.098417]
[1731292002830,0.00548565,81421.0,81418.0,0.098417]
[1731292003048,0.00548565,81421.0,81418.0,0.103317]
[1731292003294,0.32312997,81434.0,81421.0,0.0049]
[1731292003295,0.18421521,81434.0,81421.0,0.0049]
[1731292003508,0.0451,81442.0,81418.0,0.000159]
[1731292003509,0.18421521,81433.0,81430.0,0.0099]
[1731292003717,0.18421521,81433.0,81432.0,0.098241]
[1731292003880,0.12525001,81443.0,81432.0,0.098241]
[1731292004033,0.098232,81440.0,81432.0,0.098241]
[1731292004235,0.12525001,81443.0,81434.0,0.0049]
[1731292004447,0.0105071,81444.0,81436.0,0.098235]
[1731292004448,0.1087341,81444.0,81436.0,0.098235]
[1731292004655,0.22416921,81444.0,81437.0,0.098234]
[1731292005080,0.22416921,81444.0,81436.0,0.0049]
[1731292005081,0.098228,81443.0,81436.0,0.0049]
[1731292005414,0.098228,81443.0,81434.0,0.098237]
[1731292005415,0.13891476,81437.0,81434.0,0.0049]
[1731292005829,0.098237,81436.0,81434.0,0.0049]
[1731292006035,0.098237,81435.0,81434.0,0.0049]
[1731292006334,0.10376117,81435.0,81434.0,0.0049]
[1731292006738,0.10376117,81435.0,81430.0,0.005]
[1731292006941,0.10376117,81435.0,81434.0,0.0049]
[1731292007130,0.10376117,81435.0,81430.0,0.005]
[1731292007331,0.00552417,81435.0,81434.0,0.0049]
[1731292007697,0.196469,81438.0,81432.0,0.005]
[1731292007901,0.05253895,81437.0,81432.0,0.005]
[1731292008114,0.098238,81435.0,81432.0,0.005]
[1731292008323,0.00552625,81437.0,81432.0,0.005]
[1731292008530,0.098242,81431.0,81430.0,0.0049]
[1731292008728,0.00554174,81434.0,81430.0,0.0049]
[1731292008729,0.098239,81434.0,81430.0,0.0049]
[1731292009094,0.09824,81433.0,81430.0,0.0049]
[1731292009405,0.00554255,81432.0,81430.0,0.0049]
[1731292009606,0.10378355,81432.0,81430.0,0.0049]
[1731292009994,0.098242,81431.0,81430.0,0.0049]
[1731292010327,0.098242,81431.0,81424.0,0.0049]
[1731292010328,0.098247,81427.0,81424.0,0.0049]
[1731292010521,0.098247,81427.0,81426.0,0.0049]
[1731292010736,0.098241,81432.0,81427.0,0.0049]
[1731292010956,0.098242,81431.0,81427.0,0.0049]
[1731292011193,0.098244,81430.0,81427.0,0.0049]
[1731292011399,0.098248,81426.0,81425.0,0.005]
[1731292011601,0.098247,81427.0,81425.0,0.005]
[1731292012004,0.196482,81432.0,81424.0,0.0049]
[1731292012005,0.19649,81429.0,81424.0,0.0049]
[1731292012211,0.19649,81429.0,81418.0,0.010059]
[1731292012212,0.18421521,81428.0,81418.0,0.010059]
[1731292012379,0.098257,81419.0,81418.0,0.005059]
[1731292013169,0.098257,81419.0,81418.0,0.000159]
[1731292013980,0.00552906,81419.0,81418.0,0.005059]
[1731292014966,0.098257,81419.0,81418.0,0.005059]
[1731292015166,0.10378606,81419.0,81418.0,0.005059]
[1731292015746,0.10378606,81419.0,81418.0,0.103317]
[1731292015747,0.00552906,81419.0,81418.0,0.103317]
[1731292015946,0.00552906,81419.0,81418.0,0.24171564]
[1731292016124,0.18421521,81437.0,81434.0,0.0049]
[1731292016497,0.098241,81432.0,81430.0,0.005]
[1731292016610,0.098241,81432.0,81429.0,0.0049]
[1731292016611,0.098246,81428.0,81424.0,0.0049]
[1731292016816,0.13891476,81436.0,81424.0,0.0049]
[1731292016817,0.00553736,81427.0,81424.0,0.0049]
[1731292017021,0.196497,81426.0,81418.0,0.005059]
[1731292017227,0.196502,81424.0,81418.0,0.005059]
[1731292017432,0.098257,81419.0,81418.0,0.000159]
[1731292017985,0.10378606,81419.0,81418.0,0.000159]
[1731292018621,0.00552906,81419.0,81418.0,0.000159]
[1731292019021,0.098257,81419.0,81418.0,0.000159]
[1731292019359,0.10378606,81419.0,81418.0,0.000159]
[1731292019567,0.13381507,81419.0,81418.0,0.000159]
[1731292019769,0.32972827,81419.0,81418.0,0.000159]
[1731292019975,0.33172827,81419.0,81418.0,0.000159]
[1731292020175,0.41708771,81419.0,81418.0,0.000159]
[1731292021582,0.44218771,81419.0,81418.0,0.000159]
[1731292022151,0.44218771,81419.0,81412.0,0.001686]
[1731292022152,0.36017876,81413.0,81412.0,0.001686]
[1731292022355,0.48612097,81413.0,81412.0,0.001686]
[1731292022526,0.49181789,81413.0,81412.0,0.001686]
[1731292024335,0.20396092,81413.0,81412.0,0.001686]
[1731292024972,0.00569692,81413.0,81412.0,0.099951]
[1731292025205,0.00569692,81413.0,81412.0,0.114851]
[1731292025407,0.01023728,81429.0,81423.0,0.098251]
[1731292025615,0.18421521,81424.0,81423.0,0.098251]
[1731292025820,0.0056832,81428.0,81421.0,0.0049]
[1731292026034,0.01023728,81429.0,81417.0,0.005]
[1731292026035,0.18989426,81424.0,81417.0,0.005]
[1731292026237,0.098255,81421.0,81417.0,0.005]
[1731292026446,0.098255,81421.0,81415.0,0.0099]
[1731292026660,0.13168529,81423.0,81417.0,0.005]
[1731292026661,0.00573996,81420.0,81417.0,0.005]
[1731292026882,0.00573996,81420.0,81419.0,0.0049]
[1731292027093,0.01023728,81429.0,81419.0,0.0049]
[1731292027094,0.01023728,81429.0,81421.0,0.0049]
[1731292027297,0.01023728,81429.0,81420.0,0.196511]
[1731292027298,0.01023728,81429.0,81423.0,0.0049]
[1731292027542,0.01023728,81429.0,81427.0,0.103147]
[1731292027543,0.00574748,81428.0,81427.0,0.103147]
[1731292027738,0.00574748,81428.0,81427.0,0.0049]
[1731292027936,0.01023728,81429.0,81427.0,0.0049]
[1731292028173,0.00576573,81428.0,81427.0,0.0049]
[1731292028409,0.00576573,81428.0,81427.0,0.103047]
[1731292028592,0.00576573,81428.0,81427.0,0.113047]
[1731292028826,0.18421521,81438.0,81435.0,0.0048]
[1731292029238,0.00577503,81437.0,81435.0,0.0048]
[1731292029762,0.098234,81438.0,81431.0,0.103242]
[1731292029989,0.098234,81438.0,81435.0,0.0048]
[1731292029990,0.00577399,81436.0,81435.0,0.0048]
[1731292030196,0.00577503,81437.0,81435.0,0.0048]
[1731292030411,0.00577399,81436.0,81432.0,0.0048]
[1731292030629,0.00577399,81436.0,81435.0,0.103037]
[1731292030845,0.01061045,81442.0,81436.0,0.196473]
[1731292031063,0.01061045,81442.0,81440.0,0.098231]
[1731292031272,0.000843,81443.0,81435.0,0.0048]
[1731292031273,0.00577918,81441.0,81435.0,0.0048]
[1731292031505,0.098232,81440.0,81435.0,0.0048]
[1731292031711,0.00585747,81439.0,81435.0,0.0048]
[1731292032334,0.00585747,81439.0,81424.0,0.196501]
[1731292032335,0.098247,81427.0,81425.0,0.0048]
[1731292032569,0.1571077,81438.0,81429.0,0.098244]
[1731292032570,0.0812,81435.0,81429.0,0.098244]
[1731292032809,0.0812,81435.0,81428.0,0.0048]
[1731292032810,0.12594221,81438.0,81428.0,0.0048]
[1731292033019,0.098235,81438.0,81430.0,0.098243]
[1731292033225,0.098235,81437.0,81430.0,0.098243]
[1731292033453,0.12594221,81436.0,81428.0,0.0048]
[1731292033704,0.098241,81432.0,81428.0,0.0048]
[1731292033917,0.00584263,81431.0,81428.0,0.0048]
[1731292034131,0.00584263,81431.0,81429.0,0.098244]
[1731292034342,0.22417921,81436.0,81429.0,0.098244]
[1731292034556,0.22417921,81436.0,81430.0,0.098242]
[1731292034557,0.12594221,81436.0,81430.0,0.098242]
[1731292034761,0.12594221,81436.0,81428.0,0.0048]
[1731292035006,0.098241,81432.0,81428.0,0.0048]
[1731292035221,0.196475,81435.0,81428.0,0.0048]
[1731292035222,0.098243,81431.0,81428.0,0.0048]
[1731292035907,0.098242,81431.0,81428.0,0.0048]
[1731292036132,0.32241721,81435.0,81428.0,0.0048]
[1731292036133,0.098241,81433.0,81428.0,0.0048]
[1731292036347,0.12594221,81435.0,81430.0,0.098243]
[1731292036542,0.196478,81434.0,81428.0,0.0048]
[1731292036802,0.098242,81432.0,81428.0,0.0048]
[1731292037017,0.09824,81433.0,81428.0,0.0048]
[1731292038327,0.196478,81434.0,81424.0,0.0098]
[1731292038551,0.098242,81432.0,81428.0,0.0048]
[1731292038791,0.1365301,81435.0,81428.0,0.0048]
[1731292039029,0.000843,81433.0,81428.0,0.0048]
[1731292039770,0.000843,81433.0,81432.0,0.0048]
[1731292040016,0.000843,81433.0,81432.0,0.0148]
[1731292040927,0.000843,81433.0,81432.0,0.14319797]
[1731292041140,0.000843,81433.0,81432.0,0.14574221]
[1731292041800,0.000843,81433.0,81432.0,0.35398321]
[1731292042217,0.000843,81433.0,81432.0,0.51702348]
[1731292042923,0.000843,81433.0,81432.0,0.53050186]
[1731292043148,0.000843,81433.0,81432.0,0.51702348]
[1731292043397,0.000843,81433.0,81432.0,0.65594451]
[1731292043601,0.000843,81443.0,81442.0,0.39205003]
[1731292043816,0.000843,81443.0,81442.0,0.51799224]
[1731292044683,0.000843,81443.0,81442.0,0.53146897]
[1731292045103,0.000843,81443.0,81442.0,0.37407121]
[1731292045226,0.000843,81443.0,81442.0,0.37907121]
[1731292045839,0.000843,81443.0,81442.0,0.39254794]
[1731292046070,0.18421521,81457.0,81456.0,0.108012]
[1731292046295,0.18421521,81457.0,81456.0,0.113012]
[1731292046701,0.0103546,81473.0,81456.0,0.113012]
[1731292046702,0.0103546,81473.0,81465.0,0.103001]
[1731292047096,0.000842,81466.0,81465.0,0.103001]
[1731292048215,0.000842,81466.0,81465.0,0.0048]
[1731292049317,0.000842,81466.0,81465.0,0.103001]
[1731292050225,0.000842,81466.0,81456.0,0.005]
[1731292050435,0.000842,81466.0,81446.0,0.18421521]
[1731292050436,0.13892103,81457.0,81446.0,0.18421521]
[1731292050649,0.24894221,81456.0,81446.0,0.18901521]
[1731292050856,0.098221,81449.0,81446.0,0.18901521]
[1731292051090,0.098219,81451.0,81446.0,0.0048]
[1731292051312,0.196429,81454.0,81446.0,0.0048]
[1731292051522,0.09822,81450.0,81446.0,0.0048]
[1731292051724,0.098223,81447.0,81446.0,0.0048]
[1731292052400,0.098221,81449.0,81446.0,0.0048]
[1731292052862,0.098219,81451.0,81446.0,0.0048]
[1731292053309,0.098219,81450.0,81446.0,0.0048]
[1731292053509,0.39090514,81455.0,81446.0,0.0048]
[1731292053744,0.196434,81452.0,81446.0,0.0048]
[1731292053946,0.098219,81451.0,81446.0,0.0048]
[1731292054141,0.098225,81446.0,81443.0,0.0048]
[1731292054363,0.09822,81450.0,81444.0,0.0048]
[1731292054524,0.023,81453.0,81444.0,0.0048]
[1731292054744,0.12594221,81452.0,81444.0,0.0048]
[1731292055007,0.196408,81463.0,81451.0,0.0098]
[1731292055228,0.18421521,81464.0,81463.0,0.103004]
[1731292055451,0.18421521,81464.0,81463.0,0.108004]
[1731292055654,0.098191,81474.0,81465.0,0.103001]
[1731292056426,0.000842,81482.0,81465.0,0.113001]
[1731292056703,0.000842,81482.0,81465.0,0.23894321]
[1731292056865,0.18421521,81481.0,81465.0,0.23894321]
[1731292057069,0.18421521,81481.0,81465.0,0.24394321]
[1731292057643,0.000842,81482.0,81481.0,0.117982]
[1731292057904,0.000842,81482.0,81481.0,0.48857837]
[1731292058065,0.000842,81482.0,81481.0,0.52431095]
[1731292059087,0.000842,81482.0,81481.0,0.48612421]
[1731292060444,0.000842,81482.0,81481.0,0.4812152]
[1731292060614,0.000842,81482.0,81481.0,0.4862152]
[1731292061981,0.000842,81482.0,81481.0,0.4812152]
[1731292062231,0.000842,81482.0,81481.0,0.42642421]
[1731292062430,0.000842,81482.0,81481.0,0.42142421]
[1731292062944,0.000842,81482.0,81481.0,0.42642421]
[1731292063382,0.000842,81482.0,81481.0,0.42142421]
[1731292063777,0.000842,81482.0,81481.0,0.57534524]
[1731292064188,0.000842,81482.0,81481.0,0.43642421]
[1731292064608,0.000842,81482.0,81481.0,0.112982]
[1731292065980,0.000842,81482.0,81481.0,0.11543618]
[1731292066385,0.000842,81482.0,81481.0,0.112982]
[1731292073568,0.000842,81482.0,81481.0,0.0098]
[1731292073988,0.000842,81482.0,81479.0,0.005]
[1731292073989,0.000842,81482.0,81480.0,0.0048]
[1731292074140,0.000842,81482.0,81479.0,0.103183]
[1731292074141,0.023842,81482.0,81479.0,0.0048]
[1731292074361,0.023842,81482.0,81477.0,0.0048]
[1731292074563,0.098186,81478.0,81477.0,0.0048]
[1731292074762,0.023,81478.0,81477.0,0.0048]
[1731292075078,0.023,81478.0,81477.0,0.107987]
[1731292075079,0.02877453,81478.0,81477.0,0.107987]
[1731292075275,0.02877453,81478.0,81477.0,0.0098]
[1731292076035,0.02877453,81478.0,81477.0,0.0048]
[1731292076215,0.12696053,81478.0,81477.0,0.0048]
[1731292076874,0.023,81477.0,81473.0,0.0048]
[1731292077089,0.12119,81474.0,81473.0,0.0048]
[1731292077295,0.023,81474.0,81473.0,0.0048]
[1731292077506,0.02889323,81474.0,81473.0,0.0048]
[1731292078247,0.02889323,81474.0,81471.0,0.0048]
[1731292078509,0.02889323,81474.0,81464.0,0.196404]
[1731292078510,0.023,81470.0,81464.0,0.103202]
[1731292078721,0.023,81467.0,81466.0,0.099884]
[1731292078854,0.02888597,81467.0,81466.0,0.001684]
[1731292079260,0.00588597,81467.0,81466.0,0.099884]
[1731292079478,0.00588597,81467.0,81466.0,0.001684]
[1731292079479,0.121199,81467.0,81466.0,0.001684]
[1731292079687,0.12764233,81467.0,81466.0,0.001684]
[1731292079882,0.02944333,81467.0,81466.0,0.001684]
[1731292080511,0.20484233,81467.0,81466.0,0.001684]
[1731292081788,0.20484233,81467.0,81466.0,0.00223409]
[1731292082006,0.51900557,81467.0,81466.0,0.00223409]
[1731292082209,0.38008454,81467.0,81466.0,0.00223409]
[1731292083293,0.38008454,81467.0,81466.0,0.001684]
[1731292083486,0.38008454,81467.0,81466.0,0.00181195]
[1731292083487,0.61900557,81467.0,81466.0,0.00181195]
[1731292083893,0.61900557,81467.0,81454.0,0.18421521]
[1731292083894,0.098213,81455.0,81454.0,0.18421521]
[1731292084114,0.12760327,81455.0,81454.0,0.18421521]
[1731292084314,0.121216,81453.0,81452.0,0.0048]
[1731292084536,0.0293882,81453.0,81452.0,0.0048]
[1731292084963,0.0063882,81453.0,81452.0,0.108017]
[1731292085211,0.023,81459.0,81452.0,0.0048]
[1731292085385,0.098215,81454.0,81449.0,0.0048]
[1731292085724,0.0293882,81453.0,81452.0,0.0048]
[1731292085926,0.023,81453.0,81452.0,0.0048]
[1731292086239,0.023,81452.0,81451.0,0.0048]
[1731292086404,0.023,81452.0,81450.0,0.0048]
[1731292086606,0.02938716,81452.0,81451.0,0.0048]
[1731292086815,0.02938716,81452.0,81450.0,0.0048]
[1731292087056,0.121218,81451.0,81450.0,0.0048]
[1731292087234,0.02938716,81452.0,81447.0,0.01]
[1731292087235,0.023,81450.0,81449.0,0.0048]
[1731292087487,0.32313624,81465.0,81450.0,0.108019]
[1731292087488,0.00638612,81451.0,81450.0,0.108019]
[1731292087802,0.023,81460.0,81455.0,0.098213]
[1731292088004,0.18421521,81456.0,81452.0,0.0048]
[1731292088218,0.023,81455.0,81451.0,0.098218]
[1731292088392,0.023,81458.0,81453.0,0.005]
[1731292088627,0.00630609,81459.0,81458.0,0.11301]
[1731292088840,0.00630609,81459.0,81455.0,0.196427]
[1731292088841,0.18421521,81470.0,81465.0,0.0048]
[1731292089461,0.13892103,81466.0,81454.0,0.0098]
[1731292089608,0.19642,81458.0,81443.0,0.001686]
[1731292089809,0.12122,81449.0,81445.0,0.005]
[1731292090199,0.196439,81451.0,81445.0,0.005]
[1731292090200,0.023,81448.0,81445.0,0.005]
[1731292090379,0.023,81446.0,81445.0,0.005]
[1731292090592,0.023,81448.0,81445.0,0.005]
[1731292090815,0.098221,81449.0,81445.0,0.005]
[1731292090816,0.098223,81447.0,81445.0,0.005]
[1731292091018,0.023,81446.0,81445.0,0.005]
[1731292091218,0.12122,81450.0,81445.0,0.005]
[1731292091398,0.023,81446.0,81445.0,0.005]
[1731292091779,0.121224,81446.0,81445.0,0.005]
[1731292091977,0.023,81449.0,81445.0,0.005]
[1731292092183,0.023,81451.0,81445.0,0.103225]
[1731292092306,0.023,81451.0,81446.0,0.098223]
[1731292093115,0.023,81457.0,81452.0,0.0048]
[1731292093315,0.196406,81464.0,81454.0,0.005]
[1731292093316,0.01060906,81458.0,81454.0,0.005]
[1731292093516,0.098209,81459.0,81454.0,0.005]
[1731292093742,0.28242321,81460.0,81454.0,0.103214]
[1731292093944,0.098209,81459.0,81454.0,0.005]
[1731292094546,0.121208,81460.0,81454.0,0.005]
[1731292094723,0.023,81463.0,81462.0,0.005]
[1731292095345,0.023,81460.0,81458.0,0.0048]
[1731292095544,0.023,81463.0,81458.0,0.0048]
[1731292095893,0.023,81461.0,81458.0,0.0048]
[1731292096182,0.023,81463.0,81458.0,0.0048]
[1731292096415,0.023,81460.0,81458.0,0.0048]
[1731292096605,0.121208,81460.0,81458.0,0.0048]
[1731292096968,0.121208,81459.0,81458.0,0.0098]
[1731292097170,0.121208,81459.0,81458.0,0.0048]
[1731292097899,0.121208,81459.0,81455.0,0.005]
[1731292097900,0.121211,81457.0,81456.0,0.0048]
[1731292098093,0.023,81457.0,81456.0,0.0048]
[1731292098460,0.09821,81458.0,81457.0,0.0048]
[1731292098672,0.12121,81458.0,81457.0,0.0048]
[1731292098895,0.023,81458.0,81457.0,0.0048]
[1731292099097,0.098208,81459.0,81454.0,0.006684]
[1731292099294,0.023,81459.0,81458.0,0.0048]
[1731292099494,0.023,81459.0,81458.0,0.10301]
[1731292099728,0.12594221,81464.0,81458.0,0.0048]
[1731292099729,0.023,81463.0,81458.0,0.0048]
[1731292100093,0.121204,81463.0,81458.0,0.0048]
[1731292100224,0.023,81463.0,81458.0,0.0048]
[1731292100632,0.121208,81459.0,81458.0,0.0048]
[1731292100852,0.023,81459.0,81458.0,0.0048]
[1731292101032,0.121208,81460.0,81458.0,0.0048]
[1731292101432,0.121208,81460.0,81457.0,0.0048]
[1731292101433,0.317631,81458.0,81457.0,0.0048]
[1731292101640,0.098213,81455.0,81454.0,0.001684]
[1731292101848,0.121213,81455.0,81454.0,0.001684]
[1731292102048,0.32725521,81455.0,81454.0,0.001684]
[1731292102253,0.42925521,81455.0,81454.0,0.001684]
[1731292102612,0.42945521,81455.0,81454.0,0.001684]
[1731292103043,0.42945521,81455.0,81443.0,0.001686]
[1731292103044,0.26014803,81444.0,81443.0,0.001686]
[1731292103247,0.38609024,81444.0,81443.0,0.001686]
[1731292103637,0.55673442,81444.0,81443.0,0.001686]
[1731292104015,0.53649024,81444.0,81443.0,0.001686]
[1731292104219,0.53549024,81444.0,81443.0,0.001686]
[1731292104422,0.53449024,81444.0,81443.0,0.001686]
[1731292106416,0.121227,81444.0,81443.0,0.001686]
[1731292106614,0.098227,81444.0,81443.0,0.001686]
[1731292106842,0.196439,81450.0,81443.0,0.001686]
[1731292106843,0.098225,81445.0,81443.0,0.001686]
[1731292107043,0.196435,81452.0,81443.0,0.001686]
[1731292107249,0.38063321,81459.0,81450.0,0.0048]
[1731292107474,0.38063321,81459.0,81444.0,0.196454]
[1731292107475,0.196421,81458.0,81454.0,0.0048]
[1731292107679,0.098213,81455.0,81454.0,0.0048]
[1731292107878,0.32236421,81457.0,81451.0,0.005]
[1731292107879,0.098217,81452.0,81451.0,0.005]
[1731292108036,0.098217,81452.0,81443.0,0.006686]
[1731292108037,0.26486324,81452.0,81444.0,0.0047]
[1731292108236,0.098227,81444.0,81443.0,0.001686]
[1731292108458,0.30296921,81444.0,81443.0,0.001686]
[1731292108659,0.177027,81444.0,81443.0,0.001686]
[1731292108859,0.200027,81444.0,81443.0,0.001686]
[1731292109839,0.121227,81444.0,81443.0,0.001686]
[1731292110183,0.392882,81449.0,81443.0,0.001686]
[1731292110184,0.123,81448.0,81443.0,0.001686]
[1731292110381,0.123,81448.0,81447.0,0.0047]
[1731292110382,0.023,81448.0,81447.0,0.0047]
[1731292110608,0.023,81453.0,81447.0,0.0047]
[1731292110809,0.023,81449.0,81447.0,0.0047]
[1731292111199,0.123,81457.0,81448.0,0.201144]
[1731292111398,0.023,81455.0,81448.0,0.0047]
[1731292111617,0.12122,81449.0,81448.0,0.0047]
[1731292112302,0.12122,81449.0,81443.0,0.001686]
[1731292112303,0.121227,81444.0,81443.0,0.001686]
[1731292112524,0.24716921,81444.0,81443.0,0.001686]
[1731292112750,0.023,81444.0,81443.0,0.001686]
[1731292112950,0.023,81445.0,81443.0,0.006386]
[1731292113405,0.023,81444.0,81443.0,0.006386]
[1731292113603,0.023,81444.0,81443.0,0.001686]
[1731292113811,0.023,81444.0,81443.0,0.006386]
[1731292114221,0.023,81453.0,81443.0,0.006386]
[1731292114417,0.023,81444.0,81443.0,0.006386]
[1731292114678,0.098223,81447.0,81443.0,0.006286]
[1731292114873,0.023,81446.0,81443.0,0.006286]
[1731292115081,0.121227,81444.0,81443.0,0.006286]
[1731292115716,0.121227,81444.0,81443.0,0.001586]
[1731292118549,0.24716921,81444.0,81443.0,0.001586]
[1731292118982,0.34969133,81444.0,81443.0,0.001586]
[1731292119401,0.35981853,81444.0,81443.0,0.001586]
[1731292120060,0.53931853,81444.0,81443.0,0.001586]
[1731292120700,0.57571744,81444.0,81443.0,0.001586]
[1731292120941,0.43679641,81444.0,81443.0,0.001586]
[1731292122445,0.33679641,81444.0,81443.0,0.001586]
[1731292123060,0.47571744,81444.0,81443.0,0.001586]
[1731292125918,0.33679641,81444.0,81443.0,0.001586]
[1731292126360,0.25729641,81444.0,81443.0,0.001586]
[1731292128236,0.2944603,81444.0,81443.0,0.001586]
[1731292128455,0.25729641,81444.0,81443.0,0.001586]
[1731292128622,0.15906941,81444.0,81443.0,0.001586]
[1731292128839,0.25729641,81444.0,81443.0,0.001586]
[1731292129458,0.1313542,81444.0,81443.0,0.001586]
[1731292130035,0.0331272,81444.0,81443.0,0.001586]
[1731292130433,0.1313542,81444.0,81443.0,0.001586]
[1731292134568,0.1321972,81444.0,81443.0,0.001586]
[1731292134905,0.1321972,81444.0,81436.0,0.00803064]
[1731292134906,0.023,81439.0,81436.0,0.00803064]
[1731292135274,0.121228,81443.0,81438.0,0.098233]
[1731292135478,0.098229,81442.0,81437.0,0.098235]
[1731292135690,0.023,81441.0,81436.0,0.00803064]
[1731292135880,0.023,81442.0,81436.0,0.00803064]
[1731292136080,0.023,81440.0,81436.0,0.00803064]
[1731292136280,0.023,81440.0,81436.0,0.10626664]
[1731292136494,0.023,81443.0,81438.0,0.196467]
[1731292136689,0.000843,81444.0,81436.0,0.00803064]
[1731292137041,0.023,81439.0,81436.0,0.00803064]
[1731292137166,0.023,81439.0,81438.0,0.098234]
[1731292137383,0.000843,81444.0,81443.0,0.098228]
[1731292137579,0.000843,81444.0,81443.0,0.10125864]
[1731292137787,0.000843,81444.0,81443.0,0.10625864]
[1731292141009,0.000843,81444.0,81443.0,0.15625864]
[1731292141801,0.000843,81444.0,81443.0,0.15871402]
[1731292142200,0.000843,81444.0,81443.0,0.15625864]
[1731292142782,0.000843,81444.0,81443.0,0.19678475]
[1731292142988,0.000843,81444.0,81443.0,0.24248475]
[1731292143232,0.000843,81444.0,81443.0,0.42865619]